fUST/lending_fUST_20250827
["ID","MTS","AMOUNT","RATE_DAILY","PERIOD"]
[381595823,1756291997295,-96.77464153,0.00020703,2]
[381595824,1756291997320,-56.11135043,0.00020703,2]
[381595825,1756291999631,-179.249725,0.00020496,2]
[381595826,1756292001310,-414.3424273,0.00020496,2]
[381595827,1756292004237,-223.71890665,0.00020496,2]
[381595828,1756292007047,-162.49542098,0.00020496,2]
[381595829,1756292011534,-67.12118772,0.00020496,2]
[381595830,1756292011557,-165.03376374,0.00020703,2]
[381595831,1756292014148,-265.51971821,0.00020496,2]
[381595832,1756292016184,-645.5667457,0.00020496,2]
[381595833,1756292020360,-221.60600798,0.00020496,2]
[381595834,1756292020382,-184.13190337,0.00020703,2]
[381595835,1756292022597,-94.72298246,0.00020703,2]
[381595836,1756292022619,-68.69064683,0.00020703,2]
[381595837,1756292029420,-406.12819248,0.00020496,2]
[381595838,1756292033187,-182.41,0.00020496,2]
[381595839,1756292036426,-170.91036195,0.00020496,2]
[381595840,1756292039363,-168.94994048,0.00020291,2]
[381595841,1756292045059,-219.11092854,0.00020291,2]
[381595842,1756292048801,-246.09513874,0.00020291,2]
[381595843,1756292052551,-185.14443571,0.00020291,2]
[381595844,1756292054889,-230.45266918,0.00020291,2]
[381595845,1756292054911,-108.48068903,0.00020496,2]
[381595846,1756292059983,-166.2906419,0.00020496,2]
[381595847,1756292063466,-246.94704811,0.00020496,2]
[381595848,1756292068781,-158.34302403,0.00020496,2]
[381595849,1756292070433,-165.86420085,0.00020496,2]
[381595850,1756292077366,-107.01879766,0.00020496,2]
[381595851,1756292077387,-163.85006088,0.00020702,2]
[381595852,1756292077409,-70.51945311,0.00020702,2]
[381595853,1756292081277,-167.3945075,0.00020702,2]
[381595854,1756292084675,-203.74795615,0.00020702,2]
[381595855,1756292090240,-189.60509885,0.00020117,2]
[381595856,1756292092355,-20.59140915,0.00020117,2]
[381595857,1756292092377,-146.80309835,0.00020495,2]
[381595858,1756292094465,-268.69617012,0.00020495,2]
[381595859,1756292096211,-401.5963178,0.00020495,2]
[381595865,1756292099166,-303.80212423,0.00020495,2]
[381595872,1756292100823,-184.65371501,0.00020495,2]
[381595873,1756292103893,-299.63553772,0.00020495,2]
[381595874,1756292107964,-186.25526511,0.00020495,2]
[381595875,1756292112810,-168.29647525,0.00020495,2]
[381595876,1756292116274,-227.85301877,0.00020495,2]
[381595877,1756292119921,-230.23926981,0.00020495,2]
[381595878,1756292124303,-237.1030353,0.00020495,2]
[381595879,1756292126476,-265.19483079,0.00020495,2]
[381595880,1756292128164,-296.78545239,0.00020495,2]
[381595881,1756292128188,-118.64150033,0.00020701,2]
[381595882,1756292131707,-181.35849967,0.00020701,2]
[381595883,1756292131733,-43.01302845,0.00020701,2]
[381595884,1756292134422,-178.02437,0.00020494,2]
[381595885,1756292136152,-301.7115264,0.00020494,2]
[381595886,1756292139815,-168.53752178,0.00020494,2]
[381595887,1756292141481,-173.97908705,0.00020494,2]
[381595888,1756292149251,-243.99014949,0.00020494,2]
[381595889,1756292150875,-265.49593978,0.00020494,2]
[381595890,1756292153580,-171.84779506,0.00020494,2]
[381595891,1756292156501,1242.18437195,0.000199,2]
[381595892,1756292157684,-357.21891305,0.00020494,2]
[381595893,1756292160020,-269.0988277,0.00020494,2]
[381595894,1756292163536,-255.16547011,0.00020494,2]
[381595895,1756292165788,-168.048268,0.00020494,2]
[381595896,1756292167750,-165.0307003,0.00020494,2]
[381595897,1756292172571,-242.13065232,0.00020494,2]
[381595898,1756292174898,-180.135331,0.00020494,2]
[381595899,1756292179768,-219.30131598,0.00020494,2]
[381595900,1756292182105,-186.03645096,0.00020494,2]
[381595902,1756292331487,1207.51816933,0.000199,2]
[381595903,1756292388971,-488.0659922,0.00020288,2]
[381595904,1756292391720,-238.21785205,0.00020288,2]
[381595905,1756292395948,-376.60686924,0.00020288,2]
[381595906,1756292397569,-439.28292527,0.00020288,2]
[381595907,1756292399807,-215.91174552,0.00020288,2]
[381595909,1756292403663,-151.70607044,0.00020288,2]
[381595910,1756292405983,151.27311453,0.0002,2]
[381595911,1756292407190,-187.49038957,0.00020288,2]
[381595913,1756292412163,-272.67466308,0.00020288,2]
[381595914,1756292413721,-247.15259,0.00020288,2]
[381595915,1756292415267,-288.3378209,0.00020288,2]
[381595916,1756292420181,-227.23635041,0.00020288,2]
[381595917,1756292422238,-177.91537402,0.00020288,2]
[381595918,1756292430273,-300.0,0.00020288,2]
[381595919,1756292432107,-184.58015438,0.00020288,2]
[381595920,1756292432128,-116.22924652,0.00020288,2]
[381595921,1756292435415,2617.10909737,0.0002001,2]
[381595922,1756292436308,-34.51448913,0.00020288,2]
[381595923,1756292481615,441.535833,0.00013699,2]
[381595924,1756292484102,-330.67610997,0.00020351,4]
[381595925,1756292486383,-181.02062697,0.00020187,2]
[381595926,1756292493007,-151.16803761,0.00020187,2]
[381595927,1756292495195,-109.34716842,0.00020187,2]
[381595928,1756292498601,151.16803761,0.0002001,2]
[381595930,1756292514378,-277.54617361,0.00020148,2]
[381595931,1756292515011,1174.00750667,0.000199,2]
[381595932,1756292518272,-356.51405368,0.00020148,2]
[381595933,1756292520737,-113.56119323,0.00020148,2]
[381595939,1756292554070,364.6342757,0.00019663,2]
[381595954,1756292695983,897.54250278,0.000199,2]
[381595955,1756292696008,322.97171335,0.000199,2]
[381595956,1756292708181,9677.03828665,0.00019587,2]
[381595957,1756292708202,322.96171335,0.00019587,2]
[381595958,1756292729302,895.72894165,0.0002001,2]
[381595963,1756292856450,840.5101723,0.00019678,2]
[381595964,1756292875898,1552.60499464,0.000199,2]
[381595965,1756292877049,567.8511255,0.00019678,2]
[381595966,1756292888423,415.90361875,0.00019877,2]
[381595970,1756292942722,497.901396,0.00019892,2]
[381596019,1756293032148,-300.0,0.00020489,2]
[381596020,1756293032159,-115.50162921,0.00020489,2]
[381596021,1756293035683,-337.07291127,0.00020489,2]
[381596048,1756293038059,-747.42545952,0.00020489,2]
[381596049,1756293038069,-242.90839276,0.00020489,2]
[381596050,1756293038078,-475.35840087,0.00020489,2]
[381596052,1756293038088,-500.0,0.00020489,2]
[381596054,1756293038098,-500.0,0.00020489,2]
[381596056,1756293038109,-164.11664783,0.00020489,2]
[381596058,1756293038119,-266.90333743,0.00020489,2]
[381596060,1756293038128,-500.0,0.00020489,2]
[381596062,1756293038138,-500.0,0.00020489,2]
[381596064,1756293038147,-500.0,0.00020489,2]
[381596066,1756293038157,-431.44856293,0.00020489,2]
[381596067,1756293038166,-500.0,0.00020489,2]
[381596069,1756293038176,-500.0,0.00020489,2]
[381596070,1756293038185,-500.0,0.00020489,2]
[381596071,1756293038195,-500.0,0.00020489,2]
[381596072,1756293038205,-500.0,0.00020489,2]
[381596073,1756293038215,-500.0,0.00020489,2]
[381596074,1756293038225,-171.85817165,0.00020489,2]
[381596075,1756293038250,-328.14182835,0.00020489,2]
[381596076,1756293038260,-500.0,0.00020489,2]
[381596077,1756293038269,-500.0,0.00020489,2]
[381596078,1756293038279,-500.0,0.00020489,2]
[381596079,1756293038289,-500.0,0.00020489,2]
[381596080,1756293038300,-500.0,0.00020489,2]
[381596081,1756293038309,-223.46326825,0.00020489,2]
[381596082,1756293038319,-500.0,0.00020489,2]
[381596083,1756293038328,-500.0,0.00020489,2]
[381596084,1756293038338,-500.0,0.00020489,2]
[381596085,1756293038347,-500.0,0.00020489,2]
[381596086,1756293038357,-500.0,0.00020489,2]
[381596087,1756293038366,-212.07694515,0.00020489,2]
[381596088,1756293038376,-500.0,0.00020489,2]
[381596089,1756293038385,-500.0,0.00020489,2]
[381596090,1756293038394,-500.0,0.00020489,2]
[381596091,1756293038403,-500.0,0.00020489,2]
[381596092,1756293038412,-500.0,0.00020489,2]
[381596093,1756293038422,-500.0,0.00020489,2]
[381596094,1756293038431,-500.0,0.00020489,2]
[381596095,1756293038440,-500.0,0.00020489,2]
[381596096,1756293038450,-500.0,0.00020489,2]
[381596097,1756293038459,-500.0,0.00020489,2]
[381596098,1756293038468,-500.0,0.00020489,2]
[381596099,1756293038482,-500.0,0.00020489,2]
[381596100,1756293038491,-500.0,0.00020489,2]
[381596101,1756293038500,-500.0,0.00020489,2]
[381596102,1756293038510,-347.28207962,0.00020489,2]
[381596103,1756293038519,-500.0,0.00020489,2]
[381596104,1756293038529,-50000.0,0.0002049,2]
[381596105,1756293038539,-4404.42177819,0.00020494,2]
[381596106,1756293038552,-378.8971828,0.000207,2]
[381596107,1756293038561,-500.0,0.000207,2]
[381596108,1756293038572,-239.604621,0.000214,6]
[381596109,1756293038582,-354.00720343,0.000215,2]
[381596110,1756293038591,-153.0,0.00021562,2]
[381596111,1756293038600,-1552.60499444,0.00021627,2]
[381596112,1756293038609,-201.66492743,0.00021662,2]
[381596113,1756293038618,-500.0,0.00021673,2]
[381596114,1756293038628,-500.0,0.00021673,2]
[381596115,1756293038637,-500.0,0.00021673,2]
[381596116,1756293038646,-1116.97,0.00021675,3]
[381596117,1756293038655,-558.48,0.00021675,3]
[381596118,1756293038665,-279.24,0.00021675,3]
[381596119,1756293038675,-837.75,0.00021675,3]
[381596120,1756293038686,-223.15,0.00021675,10]
[381596121,1756293038696,-370000.0,0.00021685,2]
[381596122,1756293038705,-223.00104714,0.00021833,2]
[381596123,1756293038715,-151.0,0.00021896,2]
[381596124,1756293038725,-201.93286099,0.00021896,2]
[381596125,1756293038735,-500.0,0.00021896,2]
[381596126,1756293038744,-151.0,0.00021896,2]
[381596127,1756293038755,-500.0,0.00021896,2]
[381596128,1756293038766,-151.0,0.00021896,2]
[381596129,1756293038775,-500.0,0.00021896,2]
[381596130,1756293038785,-151.0,0.00021896,2]
[381596131,1756293038794,-500.0,0.00021896,2]
[381596132,1756293038803,-151.0,0.00021896,2]
[381596133,1756293038813,-151.0,0.00021896,2]
[381596134,1756293038822,-500.0,0.00021896,2]
[381596135,1756293038831,-151.0,0.00021896,2]
[381596136,1756293038840,-500.0,0.00021896,2]
[381596137,1756293038850,-151.0,0.00021896,2]
[381596138,1756293038859,-500.0,0.00021896,2]
[381596139,1756293038869,-500.0,0.00021896,2]
[381596140,1756293038878,-151.0,0.00021896,2]
[381596141,1756293038888,-151.0,0.00021896,2]
[381596142,1756293038897,-500.0,0.00021896,2]
[381596143,1756293038908,-151.0,0.00021896,2]
[381596144,1756293038918,-500.0,0.00021896,2]
[381596145,1756293038928,-151.0,0.00021896,2]
[381596146,1756293038937,-500.0,0.00021896,2]
[381596147,1756293038946,-500.0,0.00021896,2]
[381596148,1756293038956,-480.0,0.00021917,2]
[381596149,1756293038965,-480.0,0.00021917,2]
[381596150,1756293038975,-480.0,0.00021917,2]
[381596151,1756293038984,-373.24998421,0.00021917,2]
[381596152,1756293038993,-480.0,0.00021917,2]
[381596153,1756293039002,-480.0,0.00021917,2]
[381596154,1756293039012,-480.0,0.00021917,2]
[381596155,1756293039023,-493.42,0.00021917,2]
[381596156,1756293039032,-480.0,0.00021917,2]
[381596157,1756293039042,-493.05,0.00021917,2]
[381596158,1756293039052,-480.0,0.00021917,2]
[381596159,1756293039063,-480.0,0.00021917,2]
[381596160,1756293039073,-480.0,0.00021917,2]
[381596161,1756293039083,-480.0,0.00021917,2]
[381596162,1756293039092,-480.0,0.00021917,2]
[381596163,1756293039102,-480.0,0.00021917,2]
[381596164,1756293039112,-480.0,0.00021917,2]
[381596165,1756293039121,-480.0,0.00021917,2]
[381596166,1756293039131,-480.0,0.00021917,2]
[381596167,1756293039141,-480.0,0.00021917,2]
[381596168,1756293039150,-480.0,0.00021917,2]
[381596169,1756293039160,-480.0,0.00021917,2]
[381596170,1756293039169,-480.0,0.00021917,2]
[381596171,1756293039180,-480.0,0.00021917,2]
[381596172,1756293039189,-480.0,0.00021917,2]
[381596173,1756293039199,-750.5,0.00021917,2]
[381596174,1756293039209,-480.0,0.00021917,2]
[381596175,1756293039218,-480.0,0.00021917,2]
[381596176,1756293039227,-480.0,0.00021917,2]
[381596177,1756293039237,-480.0,0.00021917,2]
[381596178,1756293039246,-480.0,0.00021917,2]
[381596179,1756293039256,-593.02,0.00021917,2]
[381596180,1756293039265,-480.0,0.00021917,2]
[381596181,1756293039275,-480.0,0.00021917,2]
[381596182,1756293039284,-480.0,0.00021917,2]
[381596183,1756293039294,-480.0,0.00021917,2]
[381596184,1756293039304,-480.0,0.00021917,2]
[381596185,1756293039314,-480.0,0.00021917,2]
[381596186,1756293039324,-480.0,0.00021917,2]
[381596187,1756293039333,-480.0,0.00021917,2]
[381596188,1756293039343,-508.39286883,0.00021917,2]
[381596189,1756293039353,-480.0,0.00021917,2]
[381596190,1756293039362,-480.0,0.00021917,2]
[381596191,1756293039371,-480.0,0.00021917,2]
[381596192,1756293039380,-480.0,0.00021917,2]
[381596193,1756293039390,-480.0,0.00021917,2]
[381596194,1756293039400,-480.0,0.00021917,2]
[381596195,1756293039409,-480.0,0.00021917,2]
[381596196,1756293039419,-480.0,0.00021917,2]
[381596197,1756293039428,-480.0,0.00021917,2]
[381596198,1756293039437,-480.0,0.00021917,2]
[381596199,1756293039447,-480.0,0.00021917,2]
[381596200,1756293039456,-480.0,0.00021917,2]
[381596201,1756293039466,-480.0,0.00021917,2]
[381596202,1756293039475,-480.0,0.00021917,2]
[381596203,1756293039484,-615.18,0.00021917,2]
[381596204,1756293039494,-480.0,0.00021917,2]
[381596205,1756293039503,-480.0,0.00021917,2]
[381596206,1756293039513,-480.0,0.00021917,2]
[381596207,1756293039523,-480.0,0.00021917,2]
[381596208,1756293039532,-480.0,0.00021917,2]
[381596209,1756293039541,-480.0,0.00021917,2]
[381596210,1756293039551,-480.0,0.00021917,2]
[381596211,1756293039560,-480.0,0.00021917,2]
[381596212,1756293039569,-480.0,0.00021917,2]
[381596213,1756293039578,-480.0,0.00021917,2]
[381596214,1756293039587,-480.0,0.00021917,2]
[381596215,1756293039597,-480.0,0.00021917,2]
[381596216,1756293039607,-691.33,0.00021917,2]
[381596217,1756293039616,-480.0,0.00021917,2]
[381596218,1756293039625,-480.0,0.00021917,2]
[381596219,1756293039634,-480.0,0.00021917,2]
[381596220,1756293039643,-480.0,0.00021917,2]
[381596221,1756293039653,-480.0,0.00021917,2]
[381596223,1756293039662,-480.0,0.00021917,2]
[381596224,1756293039671,-480.0,0.00021917,2]
[381596226,1756293039684,-480.0,0.00021917,2]
[381596229,1756293039694,-480.0,0.00021917,2]
[381596232,1756293039703,-480.0,0.00021917,2]
[381596234,1756293039713,-480.0,0.00021917,2]
[381596238,1756293039723,-480.0,0.00021917,2]
[381596264,1756293039959,-480.0,0.00021917,2]
[381596265,1756293039969,-480.0,0.00021917,2]
[381596267,1756293039980,-480.0,0.00021917,2]
[381596269,1756293039990,-480.0,0.00021917,2]
[381596271,1756293040000,-480.0,0.00021917,2]
[381596273,1756293040011,-204.43774611,0.00021917,2]
[381596275,1756293040020,-483.62242684,0.00021917,2]
[381596277,1756293040031,-480.0,0.00021917,2]
[381596279,1756293040040,-480.0,0.00021917,2]
[381596281,1756293040050,-480.0,0.00021917,2]
[381596283,1756293040060,-480.0,0.00021917,2]
[381596285,1756293040070,-480.0,0.00021917,2]
[381596287,1756293040079,-480.0,0.00021917,2]
[381596289,1756293040089,-480.0,0.00021917,2]
[381596291,1756293040098,-480.0,0.00021917,2]
[381596293,1756293040108,-480.0,0.00021917,2]
[381596295,1756293040117,-480.0,0.00021917,2]
[381596297,1756293040127,-480.0,0.00021917,2]
[381596299,1756293040137,-480.0,0.00021917,2]
[381596301,1756293040146,-243.12337072,0.00021917,2]
[381596303,1756293040156,-480.0,0.00021917,2]
[381596305,1756293040165,-1133.58,0.00021917,2]
[381596307,1756293040174,-480.0,0.00021917,2]
[381596309,1756293040184,-480.0,0.00021917,2]
[381596311,1756293040194,-480.0,0.00021917,2]
[381596313,1756293040204,-520.61,0.00021917,2]
[381596315,1756293040214,-480.0,0.00021917,2]
[381596317,1756293040223,-480.0,0.00021917,2]
[381596319,1756293040233,-480.0,0.00021917,2]
[381596321,1756293040242,-480.0,0.00021917,2]
[381596323,1756293040252,-480.0,0.00021917,2]
[381596325,1756293040262,-480.0,0.00021917,2]
[381596327,1756293040271,-480.0,0.00021917,2]
[381596329,1756293040280,-480.0,0.00021917,2]
[381596331,1756293040290,-480.0,0.00021917,2]
[381596333,1756293040300,-480.0,0.00021917,2]
[381596335,1756293040309,-480.0,0.00021917,2]
[381596337,1756293040319,-480.0,0.00021917,2]
[381596339,1756293040328,-480.0,0.00021917,2]
[381596341,1756293040338,-480.0,0.00021917,2]
[381596343,1756293040347,-670.01,0.00021917,2]
[381596345,1756293040356,-490.7,0.00021917,2]
[381596347,1756293040366,-480.0,0.00021917,2]
[381596349,1756293040375,-480.0,0.00021917,2]
[381596351,1756293040385,-480.0,0.00021917,2]
[381596353,1756293040395,-480.0,0.00021917,2]
[381596355,1756293040406,-480.0,0.00021917,2]
[381596357,1756293040416,-480.0,0.00021917,2]
[381596359,1756293040426,-480.0,0.00021917,2]
[381596361,1756293040435,-480.0,0.00021917,2]
[381596363,1756293040444,-480.0,0.00021917,2]
[381596365,1756293040453,-480.0,0.00021917,2]
[381596367,1756293040464,-880.96,0.00021917,2]
[381596369,1756293040473,-480.0,0.00021917,2]
[381596371,1756293040483,-480.0,0.00021917,2]
[381596373,1756293040492,-480.0,0.00021917,2]
[381596375,1756293040502,-480.0,0.00021917,2]
[381596377,1756293040513,-480.0,0.00021917,2]
[381596379,1756293040522,-480.0,0.00021917,2]
[381596381,1756293040531,-480.0,0.00021917,2]
[381596383,1756293040541,-480.0,0.00021917,2]
[381596385,1756293040551,-480.0,0.00021917,2]
[381596387,1756293040560,-480.0,0.00021917,2]
[381596389,1756293040570,-480.0,0.00021917,2]
[381596391,1756293040579,-480.0,0.00021917,2]
[381596393,1756293040589,-480.0,0.00021917,2]
[381596395,1756293040599,-790.2,0.00021917,2]
[381596397,1756293040608,-480.0,0.00021917,2]
[381596399,1756293040618,-480.0,0.00021917,2]
[381596401,1756293040628,-480.0,0.00021917,2]
[381596403,1756293040637,-480.0,0.00021917,2]
[381596405,1756293040648,-480.0,0.00021917,2]
[381596407,1756293040657,-404.27670819,0.00021917,2]
[381596409,1756293040667,-556.06,0.00021917,2]
[381596411,1756293040678,-277.56048157,0.00021917,2]
[381596414,1756293040691,-480.0,0.00021917,2]
[381596416,1756293040701,-480.0,0.00021917,2]
[381596418,1756293040712,-480.0,0.00021917,2]
[381596420,1756293040722,-480.0,0.00021917,2]
[381596422,1756293040731,-480.0,0.00021917,2]
[381596424,1756293040740,-480.0,0.00021917,2]
[381596426,1756293040750,-480.0,0.00021917,2]
[381596428,1756293040762,-480.0,0.00021917,2]
[381596430,1756293040771,-480.0,0.00021917,2]
[381596432,1756293040780,-480.0,0.00021917,2]
[381596434,1756293040791,-480.0,0.00021917,2]
[381596436,1756293040799,-480.0,0.00021917,2]
[381596438,1756293040809,-480.0,0.00021917,2]
[381596439,1756293040819,-480.0,0.00021917,2]
[381596441,1756293040828,-972.81,0.00021917,2]
[381596444,1756293040838,-480.0,0.00021917,2]
[381596446,1756293040848,-603.69,0.00021917,2]
[381596448,1756293040857,-578.27,0.00021917,2]
[381596450,1756293040867,-480.0,0.00021917,2]
[381596452,1756293040876,-480.0,0.00021917,2]
[381596454,1756293040886,-480.0,0.00021917,2]
[381596456,1756293040896,-685.72,0.00021917,2]
[381596458,1756293040906,-480.0,0.00021917,2]
[381596460,1756293040915,-480.0,0.00021917,2]
[381596462,1756293040925,-480.0,0.00021917,2]
[381596464,1756293040934,-480.0,0.00021917,2]
[381596465,1756293040943,-270.92917611,0.00021917,2]
[381596467,1756293040953,-480.0,0.00021917,2]
[381596469,1756293040963,-480.0,0.00021917,2]
[381596471,1756293040972,-480.0,0.00021917,2]
[381596473,1756293040982,-480.0,0.00021917,2]
[381596475,1756293040992,-480.0,0.00021917,2]
[381596477,1756293041002,-480.0,0.00021917,2]
[381596479,1756293041013,-480.0,0.00021917,2]
[381596482,1756293041026,-480.0,0.00021917,2]
[381596484,1756293041036,-480.0,0.00021917,2]
[381596485,1756293041045,-480.0,0.00021917,2]
[381596488,1756293041055,-480.0,0.00021917,2]
[381596490,1756293041065,-480.0,0.00021917,2]
[381596492,1756293041074,-480.0,0.00021917,2]
[381596494,1756293041084,-480.0,0.00021917,2]
[381596495,1756293041093,-480.0,0.00021917,2]
[381596497,1756293041102,-480.0,0.00021917,2]
[381596499,1756293041112,-480.0,0.00021917,2]
[381596501,1756293041122,-480.0,0.00021917,2]
[381596503,1756293041131,-480.0,0.00021917,2]
[381596505,1756293041141,-480.0,0.00021917,2]
[381596508,1756293041151,-657.48,0.00021917,2]
[381596509,1756293041161,-480.0,0.00021917,2]
[381596511,1756293041170,-480.0,0.00021917,2]
[381596513,1756293041180,-480.0,0.00021917,2]
[381596515,1756293041190,-480.0,0.00021917,2]
[381596517,1756293041200,-480.0,0.00021917,2]
[381596519,1756293041210,-480.0,0.00021917,2]
[381596522,1756293041223,-480.0,0.00021917,2]
[381596524,1756293041233,-480.0,0.00021917,2]
[381596526,1756293041243,-480.0,0.00021917,2]
[381596528,1756293041253,-480.0,0.00021917,2]
[381596530,1756293041263,-480.0,0.00021917,2]
[381596532,1756293041273,-480.0,0.00021917,2]
[381596534,1756293041283,-480.0,0.00021917,2]
[381596536,1756293041292,-480.0,0.00021917,2]
[381596538,1756293041301,-480.0,0.00021917,2]
[381596540,1756293041311,-480.0,0.00021917,2]
[381596542,1756293041320,-480.0,0.00021917,2]
[381596544,1756293041330,-480.0,0.00021917,2]
[381596546,1756293041339,-309.93081023,0.00021917,2]
[381596548,1756293041349,-480.0,0.00021917,2]
[381596550,1756293041359,-480.0,0.00021917,2]
[381596552,1756293041368,-480.0,0.00021917,2]
[381596554,1756293041378,-480.0,0.00021917,2]
[381596556,1756293041387,-480.0,0.00021917,2]
[381596558,1756293041397,-956.58,0.00021917,2]
[381596560,1756293041406,-480.0,0.00021917,2]
[381596562,1756293041415,-480.0,0.00021917,2]
[381596564,1756293041425,-480.0,0.00021917,2]
[381596566,1756293041434,-480.0,0.00021917,2]
[381596568,1756293041444,-480.0,0.00021917,2]
[381596570,1756293041453,-480.0,0.00021917,2]
[381596572,1756293041463,-585.6,0.00021917,2]
[381596574,1756293041472,-716.84,0.00021917,2]
[381596576,1756293041482,-480.0,0.00021917,2]
[381596578,1756293041491,-480.0,0.00021917,2]
[381596580,1756293041500,-480.0,0.00021917,2]
[381596582,1756293041509,-480.0,0.00021917,2]
[381596584,1756293041518,-509.23,0.00021917,2]
[381596586,1756293041528,-485.02,0.00021917,2]
[381596588,1756293041537,-480.0,0.00021917,2]
[381596590,1756293041547,-480.0,0.00021917,2]
[381596592,1756293041556,-480.0,0.00021917,2]
[381596594,1756293041565,-480.0,0.00021917,2]
[381596596,1756293041575,-480.0,0.00021917,2]
[381596598,1756293041584,-480.0,0.00021917,2]
[381596600,1756293041593,-600.0,0.00021917,2]
[381596602,1756293041602,-480.0,0.00021917,2]
[381596604,1756293041612,-480.0,0.00021917,2]
[381596606,1756293041621,-480.0,0.00021917,2]
[381596608,1756293041631,-648.23,0.00021917,2]
[381596610,1756293041640,-480.0,0.00021917,2]
[381596612,1756293041650,-480.0,0.00021917,2]
[381596614,1756293041659,-492.93,0.00021917,2]
[381596616,1756293041669,-480.0,0.00021917,2]
[381596618,1756293041679,-480.0,0.00021917,2]
[381596620,1756293041692,-480.0,0.00021917,2]
[381596622,1756293041701,-480.0,0.00021917,2]
[381596624,1756293041710,-480.0,0.00021917,2]
[381596626,1756293041720,-480.0,0.00021917,2]
[381596628,1756293041730,-480.0,0.00021917,2]
[381596630,1756293041740,-480.0,0.00021917,2]
[381596632,1756293041749,-480.0,0.00021917,2]
[381596634,1756293041761,-480.0,0.00021917,2]
[381596636,1756293041770,-480.0,0.00021917,2]
[381596637,1756293041779,-480.0,0.00021917,2]
[381596639,1756293041789,-612.81,0.00021917,2]
[381596641,1756293041798,-389.39973075,0.00021917,2]
[381596644,1756293041808,-480.0,0.00021917,2]
[381596646,1756293041818,-480.0,0.00021917,2]
[381596648,1756293041828,-480.0,0.00021917,2]
[381596650,1756293041837,-550.22,0.00021917,2]
[381596652,1756293041847,-480.0,0.00021917,2]
[381596654,1756293041856,-480.0,0.00021917,2]
[381596656,1756293041865,-480.0,0.00021917,2]
[381596658,1756293041875,-480.0,0.00021917,2]
[381596660,1756293041884,-480.0,0.00021917,2]
[381596661,1756293041893,-480.0,0.00021917,2]
[381596662,1756293041903,-634.21,0.00021917,2]
[381596664,1756293041912,-480.0,0.00021917,2]
[381596666,1756293041922,-533.58,0.00021917,2]
[381596668,1756293041931,-480.0,0.00021917,2]
[381596670,1756293041941,-480.0,0.00021917,2]
[381596672,1756293041951,-480.0,0.00021917,2]
[381596675,1756293041965,-547.38,0.00021917,2]
[381596677,1756293041975,-480.0,0.00021917,2]
[381596678,1756293041985,-480.0,0.00021917,2]
[381596680,1756293041994,-480.0,0.00021917,2]
[381596682,1756293042004,-480.0,0.00021917,2]
[381596684,1756293042014,-480.0,0.00021917,2]
[381596686,1756293042024,-480.0,0.00021917,2]
[381596688,1756293042034,-480.0,0.00021917,2]
[381596691,1756293042043,-798.5,0.00021917,2]
[381596693,1756293042053,-480.0,0.00021917,2]
[381596695,1756293042062,-480.0,0.00021917,2]
[381596697,1756293042072,-480.0,0.00021917,2]